Cogmind - Beta 10.1 *** ADVENTURER MODE // 2020.10.20 @ 19:34:14 Player: Kane Result: Destroyed by Y-45 Defender with Heavy Assault Rifle Performance ------------- Evolutions (1) 500 Regions Visited (2) 400 Robots Destroyed (59) 295 Value Destroyed (1237) 1237 Prototype IDs (9) 180 Alien Tech Used (0) 0 Bonus (29) 29 TOTAL SCORE: 2641 Bonus ------- High Alert Combat Kills 29 Cogmind --------- Core Integrity 0/400 Matter 265/300 Energy 280/280 System Corruption 0% Temperature Cool (9) Movement Rolling (100) Ox1 Location -9/Materials Parts ------- > --- POWER (1) -------- Heavy Ion Engine > --- PROPULSION (3) --- Armored Wheel Armored Wheel > --- UTILITY (3) ------ Medium Storage Unit Medium Storage Unit > --- WEAPON (2) ------- Heavy Assault Rifle Heavy Flail > --- INVENTORY (12) --- Improved Ion Engine Improved Ion Engine Compact Wheel Improved Hover Unit Improved Hover Unit Improved Hover Unit Improved Hover Unit Medium Armor Plating EMP Blaster Rocket Launcher Mini Grenade Launcher Peak State ------------ > --- POWER ------------ Heavy Ion Engine > --- PROPULSION ------- Aluminum Leg Improved Aluminum Leg Improved Aluminum Leg > --- UTILITY ---------- Medium Storage Unit Medium Storage Unit Hardened Light Armor Plating > --- WEAPON ----------- Improved EM Shotgun Heavy Flail > --- INVENTORY -------- Improved Ion Engine Improved Ion Engine Compact Wheel Armored Wheel Armored Wheel Heat Sink Large Matter Pod Improved Sensor Array Heavy Assault Rifle EMP Blaster Rocket Launcher Mini Grenade Launcher [Rating: 20] Favorites ----------- Power Ion Engine Engine Ion Engine Propulsion Aluminum Leg Treads Light Treads Leg Aluminum Leg Wheel Armored Wheel Hover Unit Improved Hover Unit Utility Medium Storage Unit Device Improved Sensor Array Storage Medium Storage Unit Processor Signal Interpreter Protection Hardened Light Armor Plating Weapon Heavy Hammer Energy Gun Small Laser Energy Cannon Light EM Pulse Cannon Ballistic Gun Light Assault Rifle Launcher EMP Blaster Impact Weapon Heavy Hammer Special Melee Weapon Datajack Build | -11 -10 -9 ------- Run | Scr Mat Mat Slots Evolved 2 | . . 2 Power . | . . . Propulsion 1 | . . 1 Utility 1 | . . 1 Weapon . | . . . Parts Attached 63 | 6 15 42 Power 4 | 1 1 2 Engine 4 | 1 1 2 Core . | . . . Reactor . | . . . Propulsion 22 | 2 4 16 Treads 2 | . 2 . Leg 6 | 2 . 4 Wheel 11 | . 2 9 Hover 3 | . . 3 Flight . | . . . Utility 12 | 1 2 9 Device 2 | . . 2 Storage 4 | 1 1 2 Processor 1 | . . 1 Hackware . | . . . Protection 5 | . 1 4 Artifact . | . . . Weapon 25 | 2 8 15 Energy Gun 7 | 1 3 3 Energy Cannon 1 | . . 1 Ballistic Gun 6 | 1 1 4 Ballistic Cannon . | . . . Launcher 3 | . . 3 Special Weapon . | . . . Impact Weapon 5 | . 1 4 Slashing Weapon . | . . . Piercing Weapon . | . . . Special Melee Weapon 3 | . 3 . Unidentified Prototypes 1 | . . 1 Parts Lost 6 | . . 6 Power 1 | . . 1 Propulsion 3 | . . 3 Utility 1 | . . 1 Weapon 1 | . . 1 Highest Loss Streak 3 | . . 3 Average Slot Usage (%) 98 | . 97 99 Engine 11 | . 13 10 Leg 20 | . 19 20 Wheel 10 | . 7 12 Device 3 | . . 4 Storage 22 | . 23 22 Protection 4 | . 2 5 Energy Gun 6 | . 9 4 Energy Cannon 1 | . . 2 Ballistic Gun 7 | . 9 5 Impact Weapon 6 | . 3 8 Special Melee Weapon 1 | . 4 . Naked Turns . | . . . Heaviest Build 36 | 11 21 36 Greatest Support 40 | 20 40 40 Greatest Overweight (x) 1 | 1 . 1 Average Overweight (x) . | . . . Largest Inventory Capacity 12 | 6 10 12 Average Capacity 10 | 5 8 11 Most Carried 12 | 4 10 12 Average Carried 9 | 2 7 10 Final Capacity 12 | 6 10 12 Final Carried 11 | 4 10 11 Class Distribution -------------------- 100% | Mutant Dominant Class ---------------- Mutant | -10/Materials Mutant | -9/Materials Resources | -11 -10 -9 ----------- Run | Scr Mat Mat Matter Collected 1072 | 163 370 539 Remotely . | . . . Salvage Created 1900 | . 406 1494 Parts 117 | . 19 98 Haulers Intercepted 5 | . 2 3 Recyclers Shooed . | . . . Parts Field Recycled . | . . . Retrieved Matter . | . . . Parts Self-Destructed . | . . . Prevented . | . . . Kills | -11 -10 -9 ------- Run | Scr Mat Mat Combat Hostiles Destroyed 45 | . 8 37 Melee 17 | . . 17 Guns 16 | . 8 8 Cannons 4 | . . 4 AOE 1 | . . 1 Classes Destroyed 9 | . 4 5 Builder 1 | . . 1 Hauler 5 | . 2 3 Recycler 1 | . . 1 Operator 2 | . . 2 Watcher 5 | . 2 3 Swarmer 23 | . 3 20 Grunt 14 | . 5 9 Duelist 1 | . . 1 Sentry 7 | . . 7 Best Kill Streak 11 | . 3 11 Combat Bots Only 11 | . 3 11 Max Kills in Single Turn 1 | . 1 1 Gunslinging . | . . . Exploded 1 | . . 1 Melee 1 | . . 1 Uniques/NPCs Destroyed . | . . . Combat | -11 -10 -9 -------- Run | Scr Mat Mat Damage Taken 2106 | . 233 1873 Core 444 | . 43 401 Absorbed by Shields . | . . . Core Remaining (%) 91 | 100 82 . Volleys Fired 100 | . 41 59 Largest 2 | . 2 2 Hottest 79 | . 60 79 Shots Fired 170 | . 77 93 Gun 145 | . 77 68 Cannon 20 | . . 20 Launcher 5 | . . 5 Special . | . . . Kinetic 97 | . 38 59 Thermal 39 | . 39 . Explosive . | . . . Electromagnetic 34 | . . 34 Robot Hit Streak 25 | . 25 23 Robot Miss Streak 5 | . 3 5 Penetration Max . | . . . Secondary Targets . | . . . Shots Hit Robots 219 | . 71 148 Core Hits 76 | . 23 53 Critical Hits 2 | . 1 1 Critical Kills 1 | . . 1 Critical Parts Destroyed 1 | . 1 . Melee Attacks 101 | . 12 89 Impact 90 | . 1 89 Slashing . | . . . Piercing . | . . . Sneak Attacks 14 | . 10 4 Combat Hostiles 1 | . . 1 Follow-up Attacks . | . . . Damage Inflicted 4041 | . 508 3533 Guns 1194 | . 474 720 Cannons 465 | . . 465 Explosions 235 | . . 235 Melee 2147 | . 34 2113 Ramming . | . . . Kinetic 719 | . 179 540 Thermal 366 | . 295 71 Explosive . | . . . Electromagnetic 809 | . . 809 Impact 2147 | . 34 2113 Slashing . | . . . Piercing . | . . . Highest Corruption . | . . . Average Corruption . | . . . Corruption Purged . | . . . Overload Shots . | . . . Overflow Damage 243 | . 12 231 Projectiles 38 | . . 38 Explosions . | . . . Melee 205 | . 12 193 Knockbacks 9 | . . 9 Impact 8 | . . 8 Kinetic . | . . . Secondary 1 | . . 1 Self-Inflicted Damage . | . . . Shots . | . . . Rammed . | . . . Targets Rammed . | . . . Kicked . | . . . Crushed . | . . . Highest Temperature 153 | . 114 153 Average Temperature 34 | . 32 37 Received Heat Transfer 696 | . 114 582 Siege Activations . | . . . Robots Corrupted . | . . . Combat Hostiles . | . . . Parts Fried 13 | . . 13 Impact Corruptions 17 | . 1 16 Robots Melted . | . . . Combat Hostiles . | . . . Parts Melted . | . . . Heat Transferred 675 | . 675 . Parts Sabotaged . | . . . Parts Stolen . | . . . Parts Stripped . | . . . Power Chain Reactions 2 | . . 2 Missiles Intercepted . | . . . Alert | -11 -10 -9 ------- Run | Scr Mat Mat Peak Influence 481 | . 134 481 Initial 15 | . . 15 Average 104 | . 37 150 Maximum Alert Level 2 | . . 2 Low Security (%) 80 | 100 100 67 Level 1 17 | . . 29 Level 2 2 | . . 3 Level 3 . | . . . Level 4 . | . . . Level 5 . | . . . High Security . | . . . Max Security . | . . . Squads Dispatched 4 | . 2 2 Investigation 2 | . 2 . Extermination . | . . . Reinforcement 2 | . . 2 Assault . | . . . Garrison . | . . . Intercept . | . . . Construction Impeded . | . . . Haulers Reinforced . | . . . Stealth | -11 -10 -9 --------- Run | Scr Mat Mat Distress Signals 4 | . 2 2 Communications Jammed . | . . . Distress Signals . | . . . Times Spotted 70 | . 12 58 Peak Tracking Total 6 | . 4 6 Tactical Retreats 4 | . . 4 Traps | -11 -10 -9 ------- Run | Scr Mat Mat Traps Triggered 1 | . 1 . Indirectly . | . . . Trap Hack Attempts . | . . . Triggered . | . . . Disarmed . | . . . Reprogrammed 4 | . 4 . Reused 2 | . 2 . Traps Extracted . | . . . Installed . | . . . Triggered 2 | . 2 . Machines | -11 -10 -9 ---------- Run | Scr Mat Mat Machines Disabled 1 | . . 1 Max in Single Turn 1 | . . 1 Machines Sabotaged . | . . . Garrisons Compromised . | . . . Overloaded Fab Kills . | . . . Fab Network Shutdowns . | . . . Hacking | -11 -10 -9 --------- Run | Scr Mat Mat Machines Accessed 19 | . 10 9 Terminals 13 | . 7 6 Fabricators . | . . . Repair Stations 1 | . 1 . Recycling Units 3 | . 2 1 Scanalyzers 2 | . . 2 Garrison Access . | . . . Total Hacks 60 | . 33 27 Successful 45 | . 26 19 Failed 15 | . 7 8 Catastrophic 1 | . 1 . Database Lockouts . | . . . Manual 9 | . 2 7 Terminals 50 | . 27 23 Fabricators . | . . . Repair Stations 2 | . 2 . Recycling Units 5 | . 4 1 Scanalyzers 3 | . . 3 Garrison Access . | . . . Terminal Hacks 36 | . 20 16 Record 2 | . 2 . Robot Analysis 3 | . 2 1 Prototype ID Bank 5 | . 3 2 Emergency Access Points 1 | . . 1 Alert Level 6 | . 2 4 Unreport Threat 3 | . 1 2 Locate Traps 2 | . 1 1 Reprogram Traps 2 | . 2 . Dispatch Records 3 | . 1 2 Maintenance Status 1 | . 1 . Surveillance Status 1 | . 1 . Patrol Status 1 | . . 1 Reinforcement Status 1 | . 1 . Recall Investigation 2 | . 1 1 Hauler Manifests 2 | . 1 1 Registered Components 1 | . 1 . Fabricator Hacks . | . . . Repair Station Hacks 2 | . 2 . Scan Component 1 | . 1 . Repair 1 | . 1 . Recycling Unit Hacks 5 | . 4 1 Process 1 | . 1 . Report Inventory 3 | . 2 1 Retrieve Matter 1 | . 1 . Scanalyzer 2 | . . 2 Insert Component 1 | . . 1 Analyze 1 | . . 1 Garrison Access Hacks . | . . . Unauthorized Hacks . | . . . Terminals . | . . . Fabricators . | . . . Repair Stations . | . . . Recycling Units . | . . . Scanalyzers . | . . . Garrison Access . | . . . Data Cores Recovered . | . . . Used . | . . . Hacking Detections 10 | . 5 5 Full Trace Events 1 | . 1 . Feedback Events . | . . . Feedback Blocked . | . . . Robot Schematics Acquired . | . . . Robots Built . | . . . Matter . | . . . Time . | . . . Total Robot Build Rating . | . . . Part Schematics Acquired 1 | . . 1 Parts Built . | . . . Matter . | . . . Time . | . . . Total Part Build Rating . | . . . Parts Repaired 1 | . 1 . Time 26 | . 26 . Parts Recycled . | . . . Recycled Matter 55 | . 55 . Retrieved Matter 55 | . 55 . Retrieved Components . | . . . Parts Scanalyzed 1 | . . 1 Part Schematics Acquired 1 | . . 1 Parts Damaged . | . . . Bothacking | -11 -10 -9 ------------ Run | Scr Mat Mat Used RIF Installer . | . . . Robots Hacked 7 | . 7 . Non-combat 6 | . 6 . Combat 1 | . 1 . Robot Hacks Applied 9 | . 9 . parse_system 3 | . 3 . no_distress 5 | . 5 . find_station 1 | . 1 . Relay Couplers Released . | . . . Robots Rewired . | . . . Allies Hacked . | . . . Hacks Repelled . | . . . Allies | -11 -10 -9 -------- Run | Scr Mat Mat Total Allies . | . . . Largest Group . | . . . Highest-Rated Group . | . . . Highest-Rated Ally . | . . . Total Orders . | . . . Ally Attacks . | . . . Total Damage . | . . . Kills . | . . . Allies Corrupted . | . . . Allies Melted . | . . . Intel | -11 -10 -9 ------- Run | Scr Mat Mat Robot Analysis Total 3 | . 2 1 Derelict Logs Recovered . | . . . Drone Launches . | . . . Drone Recoveries . | . . . Exploration | -11 -10 -9 ------------- Run | Scr Mat Mat Turns Passed 3093 | 114 1118 1861 Spaces Moved 1898 | 79 740 1079 Core 6 | 6 . . Treads 30 | . 30 . Legs 1212 | 73 466 673 Wheels 650 | . 244 406 Hover . | . . . Flight . | . . . Fastest Speed 50 | 50 90 90 Average Speed 110 | 117 111 109 Slowest Speed 160 | 120 160 150 Overloaded Moves . | . . . Propulsion Burnouts . | . . . Robots Hopped . | . . . Cave-ins Triggered . | . . . Exploration Rate (%) 56 | 5 83 80 Regions Visited 2 Branch Regions . Pre-discovered Areas . | . . . Known Exits Taken . | . . . Unknown Exits Taken 2 | 1 1 . Scrap Searched . | . . . Spaces Dug . | . . . Terrain Destroyed . | . . . Melee . | . . . Projectile . | . . . AOE . | . . . Terrain Rammed . | . . . Walls Destroyed . | . . . Machines Disabled . | . . . Actions | -11 -10 -9 --------- Run | Scr Mat Mat Total 2536 | 98 949 1489 Wait 285 | 8 110 167 Move 1896 | 78 739 1079 Hop . | . . . Pick Up 51 | 6 17 28 Fast Attach 13 | 4 5 4 Attach 9 | 2 1 6 Detach 1 | . . 1 Swap 41 | . 9 32 Drop 39 | . 15 24 Fire 100 | . 41 59 Melee 101 | . 12 89 Ram . | . . . Kick . | . . . Crush . | . . . Escape Stasis . | . . . Rewire . | . . . Trap . | . . . Miscellaneous . | . . . Route ------- -11/Scrapyard -10/Materials (discovered 5 exits: *Mat x3 / [*Min x2]) -9/Materials (discovered 5 exits: [*Mat x2] / [*Min] / *Sto x2) History --------- Turn | Location | Event 7 | -11/Scrapyard | Discovered new exit (range 16) 115 | -11/Scrapyard | Entered Materials 314 | -10/Materials | Build established: Mutant 380 | -10/Materials | Discovered new exit (range 7) 465 | -10/Materials | Discovered new exit (range 13) 743 | -10/Materials | Discovered new exit (range 8) 982 | -10/Materials | Discovered new exit (range 9) 1029 | -10/Materials | Discovered new exit (range 6) 1122 | -10/Materials | Repaired Ion Engine 1233 | -10/Materials | Entered another Materials area 1233 | -9/Materials | Evolved 2 slots: Propulsion x1, Utility x1 1590 | -9/Materials | Core integrity fell below 50% 1657 | -9/Materials | Destroyed 11 combat bots 1786 | -9/Materials | Discovered new exit (range 13) 2133 | -9/Materials | Discovered new exit (range 7) 2396 | -9/Materials | Discovered new exit (range 16) 2512 | -9/Materials | Discovered new exit (range 10) 2675 | -9/Materials | Identified exit to Storage 3032 | -9/Materials | Discovered exit to Storage (range 10) 3068 | -9/Materials | Core integrity fell below 20% 3094 | -9/Materials | Destroyed by Y-45 Defender with Heavy Assault Rifle Last Messages --------------- Destroyed Datajack. O-16 Technician system corrupted by crushing effect. O-16 Technician destroyed. K-01 Serf collects debris. Sneak attack on A-02 Transporter. K-01 Serf cleans the Processing Tank. A-02 Transporter destroyed. Acquired Imp. Hover Unit. K-01 Serf collects debris. Acquired Imp. Hover Unit. K-01 Serf collects debris. EXIT=FOUND: STORAGE T-07 Excavator is excavating. Imp. Sensor Array destroyed. Imp. EM Shotgun destroyed. Y-45 Defender destroyed. Acquired 55 matter. Destroyed Heat Sink. Y-45 Defender system corrupted by crushing effect. Com. Wheel destroyed. Map ----- +----------------------------------------------------+ | ????????????????????????????????? | | ????????????????????????????????? | | ????????????????????????????????? | | ????????????????????????????????? | | ????????????????????????????????? | | ????????????????????????????????? | | ????????????????????????????????? | | ????????????????????????????????? | | ????????????????????????????????? | | ????????????????????????????????? | | ????????? ??????????????????????? | | ????????? ??????????????????????? | | ????????# #?????????????????????? | | ???????? ?????????????????????? | | ???????? ?????????????# ?????? | | ???????? > ????????????? ????? | | ???????? ????????????? "???? | | ???????? ????????????? "???? | | ????????# #?????????????# ???? | | ????????# #?????????????# ???? | | ????????# ?????????????# ""??" | | ????????# #?????????????# """"" | | ????????#!#?????????????# """"" | | ????????#[#?????????????+ | | ?????####+######????????#^ | | ?????# Y@ [ #????????# """"" | | ?????# = #????????# """"" | | ?????# #????????# """"" | | ?????# #????????# | | ?????# #????????# | | ?????# #????????# """"" | | ?????# #????????# """"" | | ?????# #????????# """"" | | ?????#######+############ | | ??????????# | | ??????????# | | ??????????# | | ??????????# ################## | | ??????????# ############?????# | | ??????????# # #!###### | | ?########## #= #% !! # | | # # # ! # *%= # | | # # #% ! # *[ # | | # """ # # ! # [ # | | # """"" + +% # % % + | | # """"" # #% [ # =%!% # | | # """"" # # *% ###+#### | | # """ =# ########+#### ### | | # # =!! | | ?########## [[ % | +----------------------------------------------------+ Best States ------------- Heat Dissipation 28 Energy Generation 14 Energy Capacity 280 Matter Stores 300 Matter Capacity 300 Sight Range 16 Robot Scan Range 13 Terrain Scan Density 10 Armor Coverage 150 Resistance: KI 20 Resistance: TH 20 Resistance: EX 20 Resistance: EM 20 Resistance: I 20 Resistance: S 20 Resistance: P 20 Utility Shielding 33 Evasion (%) 42 Recoil Reduction 2 Offensive Hacking 10 Item Schematics ----------------- Arm. Wheel | -9/Materials | Scanalyzed Robot Schematics ------------------ None Fabricated ------------ Nothing Alien Tech Used ----------------- None Achievements -------------- Armchair Analyst GoHome() Storm Trooper root@ Challenges ------------ None Game ------ Seed MeleeSegregatorTendrils Manual? 0 Play Time 01:06:26 Cumulative 5.1 hours Start 2020.10.20 @ 17:05:28 End 2020.10.20 @ 19:34:14 Sessions 5 Manual Loads 0 Difficulty Adventurer Special Mode None Game No. 3 Rogue 0 Adventurer 3 Explorer 0 Win Type - Total 0 Types 0/0/0/0/0/0/0/0/0 Lore% 3 Gallery% 8 Achievement% 8 Wizard Run 0 Options --------- ASCII 0 Keyboard 0 Movement Numpad Keybinds 0 Fullscreen 1 Font 16/SmallcapsGlow Map View 76x50 Tactical HUD 0 Map Filters NONE Filters NONE Steam 1 RUN: 81a1c92b-1c60-4122-9643-0c96e549e42c